[Event "*** Titled Tuesday Blitz"]
[Site "Chess.com"]
[Date "2021.04.06"]
[Round "10"]
[White "Legendinunknown"]
[Black "Vincent_Vega95"]
[Result "1/2-1/2"]
[WhiteElo "2610"]
[BlackElo "2711"]
[TimeControl "180+1"]
[EndTime "11:57:49 PDT"]
[Termination "Game drawn - insufficient material"]

1. d4 {[%clk 0:03:00.9]} 1... g6 {[%clk 0:03:00.9]} 2. c4 {[%clk 0:03:00.3]}
2... Nf6 {[%clk 0:03:00.8]} 3. Nc3 {[%clk 0:03:01.2]} 3... Bg7 {[%clk
0:03:01.5]} 4. e4 {[%clk 0:03:01.4]} 4... O-O {[%clk 0:03:02.4]} 5. Nf3 {[%clk
0:03:01.9]} 5... d6 {[%clk 0:03:03]} 6. Be2 {[%clk 0:03:02.5]} 6... Nbd7 {[%clk
0:03:03.6]} 7. Be3 {[%clk 0:03:01]} 7... e5 {[%clk 0:03:01.9]} 8. d5 {[%clk
0:03:00.8]} 8... Ng4 {[%clk 0:03:02.5]} 9. Bg5 {[%clk 0:03:00.6]} 9... f6 {[%clk
0:03:02.6]} 10. Bh4 {[%clk 0:03:01.1]} 10... h5 {[%clk 0:02:59]} 11. h3 {[%clk
0:02:59.1]} 11... Nh6 {[%clk 0:02:59.4]} 12. Qd2 {[%clk 0:02:58.7]} 12... Nf7
{[%clk 0:02:58.2]} 13. g4 {[%clk 0:02:52]} 13... Bh6 {[%clk 0:02:57.2]} 14. Qc2
{[%clk 0:02:50]} 14... hxg4 {[%clk 0:02:57.3]} 15. hxg4 {[%clk 0:02:50.9]} 15...
Kg7 {[%clk 0:02:57.1]} 16. Nd2 {[%clk 0:02:38.4]} 16... Rh8 {[%clk 0:02:50.9]}
17. O-O-O {[%clk 0:02:37.7]} 17... a5 {[%clk 0:02:40.7]} 18. Kb1 {[%clk
0:02:34.6]} 18... Nc5 {[%clk 0:02:41.1]} 19. Bg3 {[%clk 0:02:29.6]} 19... Bd7
{[%clk 0:02:38.4]} 20. Rh2 {[%clk 0:02:25.1]} 20... Bf4 {[%clk 0:02:32.9]} 21.
Bxf4 {[%clk 0:02:20.6]} 21... exf4 {[%clk 0:02:32.3]} 22. Rdh1 {[%clk
0:02:13.2]} 22... Rxh2 {[%clk 0:02:31.8]} 23. Rxh2 {[%clk 0:02:14.1]} 23... Ne5
{[%clk 0:02:29.5]} 24. f3 {[%clk 0:02:06.6]} 24... Qe7 {[%clk 0:02:28.8]} 25.
Nb3 {[%clk 0:02:06.1]} 25... Nxb3 {[%clk 0:02:26.3]} 26. Qxb3 {[%clk 0:02:07]}
26... b6 {[%clk 0:02:24.9]} 27. Qd1 {[%clk 0:02:07]} 27... Rh8 {[%clk
0:02:24.7]} 28. Qh1 {[%clk 0:02:01.7]} 28... Qe8 {[%clk 0:02:17.8]} 29. b3
{[%clk 0:01:52.1]} 29... Qg8 {[%clk 0:02:11]} 30. Kc2 {[%clk 0:01:47.2]} 30...
Rh7 {[%clk 0:02:07.6]} 31. a3 {[%clk 0:01:42.6]} 31... Qh8 {[%clk 0:02:06]} 32.
Rxh7+ {[%clk 0:01:42.2]} 32... Qxh7 {[%clk 0:02:06.9]} 33. Qxh7+ {[%clk
0:01:42.6]} 33... Kxh7 {[%clk 0:02:07.8]} 34. b4 {[%clk 0:01:43.2]} 34... axb4
{[%clk 0:02:07.1]} 35. axb4 {[%clk 0:01:44.1]} 35... Kh6 {[%clk 0:02:07.7]} 36.
Kd2 {[%clk 0:01:35.5]} 36... Kg5 {[%clk 0:02:08.1]} 37. Ke1 {[%clk 0:01:34.9]}
37... Kh4 {[%clk 0:02:08.4]} 38. Kf2 {[%clk 0:01:35.2]} 38... f5 {[%clk
0:01:39.3]} 39. gxf5 {[%clk 0:01:32.7]} 39... gxf5 {[%clk 0:01:40.2]} 40. Bf1
{[%clk 0:01:31.5]} 40... fxe4 {[%clk 0:01:33.2]} 41. Nxe4 {[%clk 0:01:32.4]}
41... Bf5 {[%clk 0:01:28.4]} 42. Nf6 {[%clk 0:01:31]} 42... Bd3 {[%clk
0:00:42.1]} 43. Bxd3 {[%clk 0:01:16.1]} 43... Nxd3+ {[%clk 0:00:41.9]} 44. Ke2
{[%clk 0:01:16.8]} 44... Nxb4 {[%clk 0:00:40.7]} 45. Ne8 {[%clk 0:01:16.7]}
45... Na6 {[%clk 0:00:41]} 46. Ng7 {[%clk 0:01:13.6]} 46... Kg5 {[%clk
0:00:30.7]} 47. Ne6+ {[%clk 0:01:09.1]} 47... Kf5 {[%clk 0:00:31]} 48. Nd4+
{[%clk 0:01:03.3]} 48... Ke5 {[%clk 0:00:30.6]} 49. Nb5 {[%clk 0:00:59.5]} 49...
Nc5 {[%clk 0:00:19.9]} 50. Kd2 {[%clk 0:00:51.8]} 50... Na6 {[%clk 0:00:19.8]}
51. Kd3 {[%clk 0:00:51]} 51... Kf5 {[%clk 0:00:19.7]} 52. Kd4 {[%clk 0:00:48.6]}
52... Kg5 {[%clk 0:00:19.5]} 53. Kd3 {[%clk 0:00:44.8]} 53... Kh4 {[%clk
0:00:18.3]} 54. Kd2 {[%clk 0:00:41.3]} 54... Kh3 {[%clk 0:00:17.3]} 55. Ke2
{[%clk 0:00:38.5]} 55... Kg3 {[%clk 0:00:17.6]} 56. Nd4 {[%clk 0:00:38.3]} 56...
Nb4 {[%clk 0:00:15.5]} 57. Nf5+ {[%clk 0:00:37]} 57... Kg2 {[%clk 0:00:13.5]}
58. Nd4 {[%clk 0:00:36.9]} 58... b5 {[%clk 0:00:12.5]} 59. Nxb5 {[%clk
0:00:36.5]} 59... c6 {[%clk 0:00:09.5]} 60. dxc6 {[%clk 0:00:32.4]} 60... Nxc6
{[%clk 0:00:09.7]} 61. Nxd6 {[%clk 0:00:29.2]} 61... Nd4+ {[%clk 0:00:09.8]} 62.
Kd3 {[%clk 0:00:29.8]} 62... Nxf3 {[%clk 0:00:10.1]} 63. c5 {[%clk 0:00:22.7]}
63... Ng5 {[%clk 0:00:03.7]} 64. Nf5 {[%clk 0:00:20.4]} 64... Ne6 {[%clk
0:00:01.4]} 65. c6 {[%clk 0:00:20.3]} 65... f3 {[%clk 0:00:01.1]} 66. Nh4+
{[%clk 0:00:19]} 66... Kg3 {[%clk 0:00:01.2]} 67. Nxf3 {[%clk 0:00:19.9]} 67...
Kxf3 {[%clk 0:00:01.7]} 68. Kc4 {[%clk 0:00:20.8]} 68... Nc7 {[%clk 0:00:02.3]}
69. Kc5 {[%clk 0:00:20.8]} 69... Kf4 {[%clk 0:00:03]} 70. Kd6 {[%clk 0:00:21.7]}
70... Na6 {[%clk 0:00:03.5]} 71. Kd5 {[%clk 0:00:21.6]} 71... Kf5 {[%clk
0:00:03.6]} 72. Kc4 {[%clk 0:00:22.5]} 72... Nc7 {[%clk 0:00:03.6]} 73. Kc5
{[%clk 0:00:23.4]} 73... Ke6 {[%clk 0:00:04.3]} 74. Kb6 {[%clk 0:00:24.3]} 74...
Kd6 {[%clk 0:00:04.8]} 75. Kb7 {[%clk 0:00:24.8]} 75... Nd5 {[%clk 0:00:05.5]}
76. Ka6 {[%clk 0:00:24.8]} 76... Nc7+ {[%clk 0:00:06.4]} 77. Ka5 {[%clk
0:00:25.7]} 77... Nd5 {[%clk 0:00:07.2]} 78. Kb5 {[%clk 0:00:25.9]} 78... Nc7+
{[%clk 0:00:07.9]} 79. Kb6 {[%clk 0:00:26.8]} 79... Nd5+ {[%clk 0:00:08.5]} 80.
Kb7 {[%clk 0:00:27.4]} 80... Nc7 {[%clk 0:00:09.1]} 81. Kb6 {[%clk 0:00:27.5]}
81... Nd5+ {[%clk 0:00:09.6]} 82. Kb5 {[%clk 0:00:28]} 82... Nc7+ {[%clk
0:00:10.3]} 83. Kc4 {[%clk 0:00:28.5]} 83... Kxc6 {[%clk 0:00:10.1]} 1/2-1/2

[Event "*** Titled Tuesday Blitz"]
[Site "Chess.com"]
[Date "2021.04.06"]
[Round "10"]
[White "Hasangatin_Ramil"]
[Black "Ajedrez_con_German"]
[Result "1-0"]
[WhiteElo "2580"]
[BlackElo "2472"]
[TimeControl "180+1"]
[EndTime "11:57:49 PDT"]
[Termination "Hasangatin_Ramil won by resignation"]

1. e4 {[%clk 0:03:00.9]} 1... d5 {[%clk 0:02:54]} 2. exd5 {[%clk 0:02:59.4]}
2... Qxd5 {[%clk 0:02:51.5]} 3. Nf3 {[%clk 0:02:59.7]} 3... Nf6 {[%clk
0:02:45.8]} 4. d4 {[%clk 0:02:57.9]} 4... Bg4 {[%clk 0:02:34.6]} 5. Be2 {[%clk
0:02:57.4]} 5... e6 {[%clk 0:02:34.1]} 6. O-O {[%clk 0:02:55.3]} 6... Be7 {[%clk
0:02:33.5]} 7. h3 {[%clk 0:02:55.6]} 7... Bh5 {[%clk 0:02:33.2]} 8. c4 {[%clk
0:02:55.9]} 8... Qd8 {[%clk 0:02:32.8]} 9. Qb3 {[%clk 0:02:55.8]} 9... Qc8
{[%clk 0:02:30.6]} 10. Nc3 {[%clk 0:02:54.8]} 10... c6 {[%clk 0:02:28.9]} 11.
Bf4 {[%clk 0:02:54.2]} 11... Nbd7 {[%clk 0:02:28.4]} 12. Rfe1 {[%clk 0:02:53.8]}
12... O-O {[%clk 0:02:28]} 13. Rac1 {[%clk 0:02:53.7]} 13... Nb6 {[%clk
0:02:13.8]} 14. a4 {[%clk 0:02:41.9]} 14... Rd8 {[%clk 0:01:56.2]} 15. a5 {[%clk
0:02:41.2]} 15... Nbd7 {[%clk 0:01:56.1]} 16. d5 {[%clk 0:02:39]} 16... Nc5
{[%clk 0:01:45.4]} 17. Qa3 {[%clk 0:02:23]} 17... Bf8 {[%clk 0:01:19.7]} 18. b4
{[%clk 0:02:17.2]} 18... Bxf3 {[%clk 0:01:15]} 19. bxc5 {[%clk 0:02:13.2]} 19...
Bxe2 {[%clk 0:01:14]} 20. Rxe2 {[%clk 0:02:07.5]} 20... cxd5 {[%clk 0:01:10.9]}
21. Na4 {[%clk 0:01:38.4]} 21... dxc4 {[%clk 0:01:04.9]} 22. Rxc4 {[%clk
0:01:34]} 22... Rd1+ {[%clk 0:01:04.4]} 23. Kh2 {[%clk 0:01:33.7]} 23... Qc6
{[%clk 0:00:55.5]} 24. Qb3 {[%clk 0:01:20.2]} 24... Rad8 {[%clk 0:00:51]} 25.
Rb2 {[%clk 0:01:10.2]} 25... Nh5 {[%clk 0:00:37.4]} 26. Qxb7 {[%clk 0:00:56.4]}
26... Qxb7 {[%clk 0:00:24.8]} 27. Rxb7 {[%clk 0:00:57.3]} 27... Nxf4 {[%clk
0:00:24.1]} 28. Rxf4 {[%clk 0:00:58.2]} 28... a6 {[%clk 0:00:17.3]} 29. Rfxf7
{[%clk 0:00:51.4]} 29... Ra1 {[%clk 0:00:14.6]} 30. Nb6 {[%clk 0:00:46.8]} 30...
Rxa5 {[%clk 0:00:14]} 31. c6 {[%clk 0:00:47.1]} 31... Rd2 {[%clk 0:00:09.1]} 32.
Rxf8+ {[%clk 0:00:37.4]} 32... Kxf8 {[%clk 0:00:09.1]} 33. c7 {[%clk 0:00:37.9]}
33... Rc5 {[%clk 0:00:06.8]} 34. c8=Q+ {[%clk 0:00:31.2]} 34... Rxc8 {[%clk
0:00:06.8]} 35. Nxc8 {[%clk 0:00:32.1]} 35... Rxf2 {[%clk 0:00:07.3]} 36. Rb6
{[%clk 0:00:30.2]} 36... Ra2 {[%clk 0:00:05.6]} 37. Rxe6 {[%clk 0:00:28.8]}
37... a5 {[%clk 0:00:06.2]} 38. Ra6 {[%clk 0:00:26.9]} 38... a4 {[%clk
0:00:06.6]} 39. Ra7 {[%clk 0:00:27.3]} 39... Ra1 {[%clk 0:00:06.3]} 40. Nd6
{[%clk 0:00:23.2]} 40... a3 {[%clk 0:00:06.8]} 41. Ne4 {[%clk 0:00:21]} 41... a2
{[%clk 0:00:04.6]} 42. Nc3 {[%clk 0:00:20.6]} 42... Rc1 {[%clk 0:00:04.3]} 43.
Nxa2 {[%clk 0:00:20.6]} 43... Ra1 {[%clk 0:00:04.3]} 44. Ra6 {[%clk 0:00:20.2]}
44... h6 {[%clk 0:00:03.7]} 45. Nb4 {[%clk 0:00:20.6]} 45... Rb1 {[%clk
0:00:03.7]} 46. Nd3 {[%clk 0:00:20.3]} 46... Rb3 {[%clk 0:00:03.5]} 47. Ne5
{[%clk 0:00:20.4]} 47... Kg8 {[%clk 0:00:03.8]} 48. Ra7 {[%clk 0:00:20.2]} 48...
Kh7 {[%clk 0:00:03.6]} 49. Nf3 {[%clk 0:00:19.6]} 49... Rb2 {[%clk 0:00:03.9]}
50. Kg3 {[%clk 0:00:19.2]} 50... Rc2 {[%clk 0:00:04.1]} 51. h4 {[%clk
0:00:18.8]} 51... Rb2 {[%clk 0:00:04.5]} 52. Kh3 {[%clk 0:00:19.1]} 52... Rc2
{[%clk 0:00:04.8]} 53. g3 {[%clk 0:00:19.5]} 53... Rb2 {[%clk 0:00:05]} 54. Nd4
{[%clk 0:00:19.1]} 54... Rb4 {[%clk 0:00:05]} 55. Nf5 {[%clk 0:00:18.6]} 55...
Kg6 {[%clk 0:00:04.1]} 56. Ne7+ {[%clk 0:00:15.2]} 56... Kh7 {[%clk 0:00:03.3]}
57. h5 {[%clk 0:00:15.5]} 57... Kh8 {[%clk 0:00:02.4]} 58. Nf5 {[%clk 0:00:15]}
58... Rb5 {[%clk 0:00:02.8]} 59. g4 {[%clk 0:00:13.9]} 59... Rb1 {[%clk
0:00:02.7]} 60. Nxg7 {[%clk 0:00:10.3]} 60... Rh1+ {[%clk 0:00:02.2]} 61. Kg2
{[%clk 0:00:09.1]} 61... Rb1 {[%clk 0:00:02.6]} 62. Nf5 {[%clk 0:00:08.8]} 62...
Rb2+ {[%clk 0:00:03.2]} 63. Kg3 {[%clk 0:00:09.1]} 63... Kg8 {[%clk 0:00:03.8]}
64. Nxh6+ {[%clk 0:00:07.9]} 64... Kh8 {[%clk 0:00:03.6]} 65. Nf5 {[%clk
0:00:08.8]} 65... Kg8 {[%clk 0:00:03.9]} 66. Kh4 {[%clk 0:00:09.2]} 66... Kh8
{[%clk 0:00:04.3]} 67. Kg5 {[%clk 0:00:09.6]} 67... Rb6 {[%clk 0:00:04.5]} 68.
h6 {[%clk 0:00:09.5]} 68... Kg8 {[%clk 0:00:03.9]} 69. Ne7+ {[%clk 0:00:09.4]}
69... Kh8 {[%clk 0:00:04.2]} 70. Ng6+ {[%clk 0:00:09.2]} 1-0

[Event "*** Titled Tuesday Blitz"]
[Site "Chess.com"]
[Date "2021.04.06"]
[Round "10"]
[White "Byniolus"]
[Black "Artem_Sadovsky"]
[Result "0-1"]
[WhiteElo "2853"]
[BlackElo "2656"]
[TimeControl "180+1"]
[EndTime "11:57:50 PDT"]
[Termination "Artem_Sadovsky won on time"]

1. d4 {[%clk 0:03:00.9]} 1... g6 {[%clk 0:03:00.1]} 2. Nf3 {[%clk 0:03:00.3]}
2... Bg7 {[%clk 0:03:00.2]} 3. Bf4 {[%clk 0:03:00]} 3... d6 {[%clk 0:02:59.5]}
4. e3 {[%clk 0:02:59.6]} 4... c5 {[%clk 0:02:58.8]} 5. c3 {[%clk 0:02:59.2]}
5... Nd7 {[%clk 0:02:59]} 6. h3 {[%clk 0:02:58.6]} 6... Ngf6 {[%clk 0:02:59.3]}
7. Nbd2 {[%clk 0:02:57.5]} 7... O-O {[%clk 0:02:59.8]} 8. Be2 {[%clk 0:02:57.7]}
8... b6 {[%clk 0:02:59.4]} 9. O-O {[%clk 0:02:57.9]} 9... Bb7 {[%clk 0:03:00]}
10. a4 {[%clk 0:02:58.3]} 10... Qc7 {[%clk 0:03:00]} 11. Bh2 {[%clk 0:02:56.4]}
11... a6 {[%clk 0:02:58.9]} 12. Qb3 {[%clk 0:02:55]} 12... Rac8 {[%clk 0:02:44]}
13. Rfe1 {[%clk 0:02:50.1]} 13... Qb8 {[%clk 0:02:42.4]} 14. Bd3 {[%clk
0:02:34.7]} 14... Qa8 {[%clk 0:02:40.6]} 15. e4 {[%clk 0:02:34]} 15... cxd4
{[%clk 0:02:06.1]} 16. cxd4 {[%clk 0:02:33.8]} 16... e5 {[%clk 0:02:07]} 17. Qa3
{[%clk 0:02:09.7]} 17... Rfe8 {[%clk 0:01:57.1]} 18. d5 {[%clk 0:01:59.6]} 18...
Bf8 {[%clk 0:01:42.4]} 19. b4 {[%clk 0:01:38.8]} 19... Rc7 {[%clk 0:01:33.4]}
20. Rec1 {[%clk 0:01:28.5]} 20... Rec8 {[%clk 0:01:32.9]} 21. g4 {[%clk
0:00:50.8]} 21... a5 {[%clk 0:01:31.7]} 22. Rxc7 {[%clk 0:00:47.2]} 22... Rxc7
{[%clk 0:01:31.8]} 23. Bb5 {[%clk 0:00:42.3]} 23... Qc8 {[%clk 0:01:21.7]} 24.
bxa5 {[%clk 0:00:30.3]} 24... bxa5 {[%clk 0:01:22.6]} 25. Rb1 {[%clk 0:00:29.1]}
25... Rc3 {[%clk 0:01:21.8]} 26. Qa1 {[%clk 0:00:23.6]} 26... Rxf3 {[%clk
0:00:53.5]} 27. Nxf3 {[%clk 0:00:15.9]} 27... Nc5 {[%clk 0:00:53.7]} 28. Rc1
{[%clk 0:00:13.3]} 28... Nfxe4 {[%clk 0:00:53.2]} 29. Qb1 {[%clk 0:00:10.4]}
29... Bxd5 {[%clk 0:00:51.7]} 30. Qc2 {[%clk 0:00:07.6]} 30... Qe6 {[%clk
0:00:50.3]} 31. Ne1 {[%clk 0:00:05.9]} 31... Bb3 {[%clk 0:00:49]} 32. Qe2 {[%clk
0:00:05.4]} 32... Ng5 {[%clk 0:00:47.1]} 33. h4 {[%clk 0:00:04.5]} 33... Nge4
{[%clk 0:00:38.6]} 34. f3 {[%clk 0:00:04.9]} 34... Nf6 {[%clk 0:00:37.6]} 35.
Nd3 {[%clk 0:00:05.3]} 35... Nxa4 {[%clk 0:00:33.3]} 36. Rb1 {[%clk 0:00:04.2]}
36... Nc3 {[%clk 0:00:32.5]} 37. Qb2 {[%clk 0:00:03.2]} 37... Nxb1 {[%clk
0:00:31.6]} 38. Qxb1 {[%clk 0:00:04.1]} 38... Nxg4 {[%clk 0:00:28.9]} 39. fxg4
{[%clk 0:00:03.7]} 39... Qxg4+ {[%clk 0:00:29.8]} 40. Kf2 {[%clk 0:00:02.4]}
40... Qxh4+ {[%clk 0:00:29.7]} 41. Bg3 {[%clk 0:00:02.9]} 41... Qd4+ {[%clk
0:00:30.4]} 42. Ke2 {[%clk 0:00:03.3]} 42... Be6 {[%clk 0:00:27.9]} 43. Qb2
{[%clk 0:00:02.9]} 43... Bg4+ {[%clk 0:00:28]} 44. Kd2 {[%clk 0:00:03.3]} 44...
Qxb2+ {[%clk 0:00:25.2]} 45. Nxb2 {[%clk 0:00:04.2]} 45... f5 {[%clk 0:00:21.6]}
46. Nc4 {[%clk 0:00:04.2]} 46... f4 {[%clk 0:00:21.3]} 47. Bh4 {[%clk
0:00:04.7]} 47... Be6 {[%clk 0:00:20.4]} 48. Nxa5 {[%clk 0:00:04.6]} 48... h6
{[%clk 0:00:20.2]} 49. Bd8 {[%clk 0:00:04]} 49... g5 {[%clk 0:00:20.4]} 50. Nc6
{[%clk 0:00:04.9]} 50... g4 {[%clk 0:00:20.4]} 51. Ke2 {[%clk 0:00:05.3]} 51...
Kf7 {[%clk 0:00:17.9]} 52. Bh4 {[%clk 0:00:04.8]} 52... Kg6 {[%clk 0:00:17.5]}
53. Nd8 {[%clk 0:00:05.1]} 53... Bd5 {[%clk 0:00:16.6]} 54. Be8+ {[%clk
0:00:05.3]} 54... Kf5 {[%clk 0:00:16.9]} 55. Bd7+ {[%clk 0:00:04.9]} 55... Ke4
{[%clk 0:00:17.4]} 56. Bxg4 {[%clk 0:00:05.3]} 56... Bc4+ {[%clk 0:00:18]} 57.
Kf2 {[%clk 0:00:05.1]} 57... d5 {[%clk 0:00:16.8]} 58. Nf7 {[%clk 0:00:05.1]}
58... Bc5+ {[%clk 0:00:16.6]} 59. Kg2 {[%clk 0:00:05]} 59... Bd4 {[%clk
0:00:14.2]} 60. Nxh6 {[%clk 0:00:04.9]} 60... Kd3 {[%clk 0:00:13]} 61. Bf5+
{[%clk 0:00:04.2]} 61... e4 {[%clk 0:00:13.4]} 62. Ng4 {[%clk 0:00:04.3]} 62...
f3+ {[%clk 0:00:13]} 63. Kg3 {[%clk 0:00:05.2]} 63... Ke2 {[%clk 0:00:12.9]} 64.
Bg5 {[%clk 0:00:05.1]} 64... f2 {[%clk 0:00:12.3]} 65. Nh2 {[%clk 0:00:05.4]}
65... f1=Q {[%clk 0:00:11.8]} 66. Nxf1 {[%clk 0:00:05.5]} 66... Kxf1 {[%clk
0:00:12.7]} 67. Kf4 {[%clk 0:00:06.3]} 67... Bd3 {[%clk 0:00:11.1]} 68. Be6
{[%clk 0:00:05.8]} 68... e3 {[%clk 0:00:09]} 69. Bxd5 {[%clk 0:00:05.3]} 69...
e2 {[%clk 0:00:09.7]} 70. Bh4 {[%clk 0:00:04.4]} 70... Bf2 {[%clk 0:00:10.3]}
71. Bxf2 {[%clk 0:00:03.6]} 71... Kxf2 {[%clk 0:00:10.7]} 0-1

[Event "*** Titled Tuesday Blitz"]
[Site "Chess.com"]
[Date "2021.04.06"]
[Round "10"]
[White "Nicolas_Chess10"]
[Black "tteshan"]
[Result "1-0"]
[WhiteElo "2437"]
[BlackElo "2305"]
[TimeControl "180+1"]
[EndTime "11:57:53 PDT"]
[Termination "Nicolas_Chess10 won by resignation"]

1. d4 {[%clk 0:03:00.8]} 1... g6 {[%clk 0:02:57.1]} 2. c4 {[%clk 0:02:59.3]}
2... Bg7 {[%clk 0:02:57]} 3. e4 {[%clk 0:02:59.9]} 3... c5 {[%clk 0:02:55.8]} 4.
d5 {[%clk 0:03:00]} 4... d6 {[%clk 0:02:45]} 5. Nc3 {[%clk 0:02:58.3]} 5... Nf6
{[%clk 0:02:43.7]} 6. Bd3 {[%clk 0:02:57.9]} 6... Nbd7 {[%clk 0:02:43.6]} 7.
Nge2 {[%clk 0:02:58]} 7... Ne5 {[%clk 0:02:43.7]} 8. O-O {[%clk 0:02:58.4]} 8...
Nxd3 {[%clk 0:02:43.9]} 9. Qxd3 {[%clk 0:02:59.3]} 9... Nd7 {[%clk 0:02:44.2]}
10. f4 {[%clk 0:02:59.2]} 10... O-O {[%clk 0:02:39.3]} 11. Be3 {[%clk 0:02:49]}
11... Qe8 {[%clk 0:02:32.8]} 12. Ng3 {[%clk 0:02:47.8]} 12... a6 {[%clk
0:02:27.3]} 13. e5 {[%clk 0:02:47.1]} 13... dxe5 {[%clk 0:02:22.7]} 14. f5
{[%clk 0:02:47.5]} 14... b5 {[%clk 0:02:07.7]} 15. cxb5 {[%clk 0:02:34.3]} 15...
axb5 {[%clk 0:02:07]} 16. Nxb5 {[%clk 0:02:34.3]} 16... Ba6 {[%clk 0:02:01.5]}
17. a4 {[%clk 0:02:31.8]} 17... Nb6 {[%clk 0:01:50.7]} 18. Bxc5 {[%clk
0:02:27.1]} 18... Nxa4 {[%clk 0:01:51]} 19. Rxa4 {[%clk 0:02:21.5]} 19... Bxb5
{[%clk 0:01:50.7]} 20. Rxa8 {[%clk 0:02:21.4]} 20... Bxd3 {[%clk 0:01:47.7]} 21.
Rxe8 {[%clk 0:02:21.4]} 21... Rxe8 {[%clk 0:01:43.2]} 22. Rf2 {[%clk 0:02:16.3]}
22... Ra8 {[%clk 0:01:35.1]} 23. fxg6 {[%clk 0:01:57.2]} 23... Ra1+ {[%clk
0:01:31.4]} 24. Nf1 {[%clk 0:01:57]} 24... hxg6 {[%clk 0:01:25.6]} 25. Bxe7
{[%clk 0:01:54]} 25... e4 {[%clk 0:01:22.8]} 26. Bc5 {[%clk 0:01:53.6]} 26... f5
{[%clk 0:01:11.8]} 27. b4 {[%clk 0:01:46.5]} 27... Rc1 {[%clk 0:01:05.4]} 28. d6
{[%clk 0:01:23.1]} 28... Bb5 {[%clk 0:01:03.3]} 29. g3 {[%clk 0:01:22]} 29...
Bh6 {[%clk 0:00:48.3]} 30. Kg2 {[%clk 0:01:19.3]} 30... Re1 {[%clk 0:00:38.2]}
31. Ra2 {[%clk 0:00:24.2]} 31... Bxf1+ {[%clk 0:00:37]} 32. Kf2 {[%clk
0:00:23.6]} 32... Rd1 {[%clk 0:00:31.7]} 33. Ra8+ {[%clk 0:00:19.4]} 33... Kf7
{[%clk 0:00:30.7]} 34. d7 {[%clk 0:00:18.8]} 34... e3+ {[%clk 0:00:28.7]} 35.
Bxe3 {[%clk 0:00:09.3]} 35... Bxe3+ {[%clk 0:00:29.6]} 36. Kxe3 {[%clk
0:00:10.2]} 36... Rxd7 {[%clk 0:00:28.8]} 37. Ra2 {[%clk 0:00:06.6]} 37... Rb7
{[%clk 0:00:27.5]} 38. Rb2 {[%clk 0:00:06.4]} 38... Bc4 {[%clk 0:00:27.9]} 39.
h4 {[%clk 0:00:05.1]} 39... Ke6 {[%clk 0:00:25.2]} 40. Kd4 {[%clk 0:00:05.7]}
40... Bf1 {[%clk 0:00:22]} 41. Kc5 {[%clk 0:00:04.2]} 41... Rb5+ {[%clk
0:00:21]} 42. Kd4 {[%clk 0:00:04.1]} 42... Rd5+ {[%clk 0:00:20.6]} 43. Ke3
{[%clk 0:00:03.2]} 43... Rb5 {[%clk 0:00:19.8]} 44. Kf4 {[%clk 0:00:03.3]} 44...
Bc4 {[%clk 0:00:17.6]} 45. Kg5 {[%clk 0:00:03.4]} 45... Kf7 {[%clk 0:00:17.6]}
46. Rb1 {[%clk 0:00:01.7]} 46... Be6 {[%clk 0:00:17.1]} 47. Rc1 {[%clk
0:00:01.5]} 47... Rxb4 {[%clk 0:00:15.5]} 48. Rc7+ {[%clk 0:00:02.1]} 48... Ke8
{[%clk 0:00:14.9]} 49. Kxg6 {[%clk 0:00:02.3]} 49... Rg4+ {[%clk 0:00:13.6]} 50.
Kf6 {[%clk 0:00:02.8]} 50... Bd7 {[%clk 0:00:12.9]} 51. Rc5 {[%clk 0:00:02.2]}
51... Rxg3 {[%clk 0:00:12.7]} 52. h5 {[%clk 0:00:02.8]} 52... Rh3 {[%clk
0:00:12.6]} 53. Kg6 {[%clk 0:00:03]} 53... Rg3+ {[%clk 0:00:13]} 54. Kf6 {[%clk
0:00:03.3]} 54... f4 {[%clk 0:00:13.2]} 55. Re5+ {[%clk 0:00:02.9]} 55... Kd8
{[%clk 0:00:13.1]} 56. h6 {[%clk 0:00:02.8]} 56... f3 {[%clk 0:00:12.8]} 57. Re1
{[%clk 0:00:02.6]} 57... f2 {[%clk 0:00:13.1]} 58. Rf1 {[%clk 0:00:02.6]} 58...
Rg2 {[%clk 0:00:13.1]} 59. h7 {[%clk 0:00:02.6]} 59... Rh2 {[%clk 0:00:13.6]}
60. Kg7 {[%clk 0:00:02.2]} 60... Rg2+ {[%clk 0:00:12.9]} 61. Kh6 {[%clk
0:00:01.5]} 61... Rh2+ {[%clk 0:00:12.1]} 62. Kg7 {[%clk 0:00:02.1]} 62... Bb5
{[%clk 0:00:09]} 63. Rxf2 {[%clk 0:00:02.3]} 63... Rxf2 {[%clk 0:00:04.5]} 64.
h8=Q+ {[%clk 0:00:02.3]} 64... Be8 {[%clk 0:00:05.1]} 65. Qh4+ {[%clk
0:00:03.1]} 65... Kc8 {[%clk 0:00:03.8]} 66. Qxf2 {[%clk 0:00:03.5]} 66... Bd7
{[%clk 0:00:04]} 67. Qd4 {[%clk 0:00:04.4]} 67... Bc6 {[%clk 0:00:03.6]} 68. Kf6
{[%clk 0:00:05.3]} 68... Kb7 {[%clk 0:00:04.4]} 69. Ke5 {[%clk 0:00:06.2]} 69...
Bb5 {[%clk 0:00:04.7]} 70. Kd6 {[%clk 0:00:07.1]} 70... Bc6 {[%clk 0:00:04.6]}
71. Qc5 {[%clk 0:00:08]} 71... Be8 {[%clk 0:00:04.6]} 72. Qc7+ {[%clk
0:00:08.5]} 72... Ka6 {[%clk 0:00:04.9]} 73. Qc8+ {[%clk 0:00:09]} 73... Kb5
{[%clk 0:00:05.8]} 74. Qxe8+ {[%clk 0:00:09.9]} 74... Ka5 {[%clk 0:00:06.3]} 75.
Qe5+ {[%clk 0:00:10.8]} 75... Kb4 {[%clk 0:00:07.2]} 76. Qc5+ {[%clk 0:00:11.1]}
1-0